fUST/lending_fUST_20240706
["ID","MTS","AMOUNT","RATE_DAILY","PERIOD"]
[331344954,1720264152107,-500.0,0.00043824,31]
[331344955,1720264152132,-500.0,0.00043824,7]
[331344956,1720264152156,-546.60565646,0.00043824,7]
[331344957,1720264152182,-500.0,0.00043824,7]
[331344958,1720264152210,-500.0,0.00043824,7]
[331344959,1720264152235,-500.0,0.00043824,7]
[331344960,1720264152260,-500.0,0.00043824,7]
[331344961,1720264152286,-500.0,0.00043824,7]
[331344962,1720264152309,-500.0,0.00043824,7]
[331344963,1720264152333,-500.0,0.00043824,7]
[331344964,1720264152354,-500.0,0.00043824,31]
[331344965,1720264152377,-500.0,0.00043824,31]
[331344966,1720264152398,-500.0,0.00043824,31]
[331344967,1720264152420,-500.0,0.00043824,31]
[331344968,1720264152442,-500.0,0.00043824,31]
[331344969,1720264152464,-500.0,0.00043824,31]
[331344970,1720264152485,-256.06918931,0.00043824,31]
[331344971,1720264152510,-7715.03076825,0.00043825,31]
[331344972,1720264152536,-47716.48994251,0.00043825,5]
[331344975,1720264163124,-495.50543718,0.00038264,4]
[331344976,1720264164844,9117.42071341,0.00036513,2]
[331344977,1720264170208,-15782.57928659,0.00036513,2]
[331344978,1720264170230,-760.41122648,0.0004,4]
[331344979,1720264170252,-155.16093551,0.00041095,4]
[331344987,1720264207660,681.88105248,0.00029612,2]
[331344988,1720264210879,299.670113,0.00036979,2]
[331345010,1720264232895,-481.33165246,0.00043615,30]
[331345012,1720264232905,-71.39328842,0.00043815,3]
[331345014,1720264232918,-487.67671158,0.00043815,3]
[331345016,1720264232927,-465.9,0.00043815,3]
[331345018,1720264232937,-3857.51538412,0.00043825,31]
[331345020,1720264232947,-5189.3861193,0.00043825,5]
[331345022,1720264232959,-561.46296804,0.00043825,5]
[331345066,1720264238732,-281823.60013909,0.00043825,5]
[331345067,1720264239522,-8639.65512006,0.00043825,5]
[331345068,1720264239534,-1481.65534805,0.00043834,4]
[331345069,1720264239545,-500.0,0.00043834,31]
[331345070,1720264239556,-500.0,0.00043834,31]
[331345071,1720264239571,-606.25373162,0.00043834,31]
[331345072,1720264239581,-500.0,0.00043834,31]
[331345073,1720264239592,-500.0,0.00043834,31]
[331345074,1720264239603,-500.0,0.00043834,31]
[331345075,1720264239614,-448.45689856,0.00043834,31]
[331345076,1720264239625,-500.0,0.00043834,31]
[331345077,1720264239635,-500.0,0.00043834,31]
[331345078,1720264239645,-500.0,0.00043834,31]
[331345079,1720264239656,-500.0,0.00043834,31]
[331345080,1720264239666,-500.0,0.00043834,31]
[331345081,1720264239676,-500.0,0.00043834,31]
[331345082,1720264239687,-500.0,0.00043834,31]
[331345083,1720264239697,-500.0,0.00043834,31]
[331345084,1720264239707,-500.0,0.00043834,31]
[331345085,1720264239717,-549.30997951,0.00043834,31]
[331345086,1720264239727,-500.0,0.00043834,31]
[331345087,1720264239737,-500.0,0.00043835,120]
[331345088,1720264239747,-503.44551331,0.00043835,120]
[331345089,1720264239757,-500.0,0.00043835,120]
[331345090,1720264239769,-574.42,0.00043835,120]
[331345091,1720264239780,-186.98522794,0.00043835,120]
[331345092,1720264239790,-504.96556493,0.00043835,120]
[331345093,1720264239802,-500.0,0.00043835,120]
[331345094,1720264239812,-628.1,0.00043835,120]
[331345095,1720264239825,-502.01826019,0.00043835,120]
[331345096,1720264239837,-500.47101615,0.00043835,120]
[331345097,1720264239847,-500.0,0.00043835,120]
[331345098,1720264239857,-500.0,0.00043835,120]
[331345099,1720264239867,-500.0,0.00043835,120]
[331345100,1720264239877,-501.13945879,0.00043835,120]
[331345101,1720264239888,-502.20503467,0.00043835,120]
[331345102,1720264239898,-510.30515403,0.00043835,120]
[331345103,1720264239908,-500.0,0.00043835,120]
[331345104,1720264239918,-500.0,0.00043835,120]
[331345105,1720264239928,-503.03194375,0.00043835,120]
[331345106,1720264239938,-502.47443858,0.00043835,120]
[331345107,1720264239948,-153.92886431,0.00043835,120]
[331345108,1720264239958,-500.0,0.00043835,120]
[331345109,1720264239969,-500.4798113,0.00043835,120]
[331345110,1720264239979,-501.33884234,0.00043835,120]
[331345111,1720264239990,-500.0,0.00043835,120]
[331345112,1720264240000,-229.75144609,0.00043835,120]
[331345113,1720264240010,-500.0,0.00043835,120]
[331345114,1720264240020,-500.0,0.00043835,120]
[331345115,1720264240030,-193.92018827,0.00043835,120]
[331345116,1720264240040,-522.14918428,0.00043835,120]
[331345117,1720264240051,-500.0,0.00043835,120]
[331345118,1720264240062,-501.75438069,0.00043835,120]
[331345119,1720264240073,-500.0,0.00043835,120]
[331345120,1720264240083,-500.0,0.00043835,120]
[331345121,1720264240093,-550.24,0.00043835,120]
[331345122,1720264240103,-500.0,0.00043835,120]
[331345123,1720264240114,-505.79277008,0.00043835,120]
[331345124,1720264240125,-500.0,0.00043835,120]
[331345125,1720264240135,-235.26265234,0.00043835,120]
[331345126,1720264240146,-500.0,0.00043835,120]
[331345127,1720264240157,-500.0,0.00043835,120]
[331345128,1720264240168,-500.0,0.00043835,120]
[331345129,1720264240178,-500.0,0.00043835,120]
[331345130,1720264240189,-500.0,0.00043835,120]
[331345131,1720264240199,-500.0,0.00043835,120]
[331345132,1720264240214,-500.0,0.00043835,120]
[331345133,1720264240225,-500.0,0.00043835,120]
[331345134,1720264240235,-500.0,0.00043835,120]
[331345135,1720264240247,-500.0,0.00043835,120]
[331345136,1720264240257,-532.96937777,0.00043835,120]
[331345137,1720264240268,-500.0,0.00043835,120]
[331345138,1720264240278,-500.91965586,0.00043835,120]
[331345139,1720264240291,-501.42397248,0.00043835,120]
[331345140,1720264240303,-500.0,0.00043835,120]
[331345141,1720264240313,-500.0,0.00043835,120]
[331345142,1720264240328,-500.0,0.00043835,120]
[331345143,1720264240338,-566.46,0.00043835,120]
[331345144,1720264240348,-500.0,0.00043835,120]
[331345145,1720264240359,-500.0,0.00043835,120]
[331345146,1720264240369,-509.49118362,0.00043835,120]
[331345147,1720264240379,-500.0,0.00043835,120]
[331345148,1720264240390,-500.0,0.00043835,120]
[331345149,1720264240401,-500.0,0.00043835,120]
[331345150,1720264240411,-503.05682226,0.00043835,120]
[331345151,1720264240422,-500.0,0.00043835,120]
[331345152,1720264240432,-500.0,0.00043835,120]
[331345153,1720264240442,-500.0,0.00043835,120]
[331345154,1720264240453,-500.0,0.00043835,120]
[331345155,1720264240463,-500.0,0.00043835,120]
[331345156,1720264240473,-500.0,0.00043835,120]
[331345158,1720264240483,-500.73743651,0.00043835,120]
[331345159,1720264240493,-501.9909106,0.00043835,120]
[331345160,1720264240504,-502.34866789,0.00043835,120]
[331345161,1720264240514,-871.77,0.00043835,120]
[331345162,1720264240524,-500.0,0.00043835,120]
[331345163,1720264240534,-500.0,0.00043835,120]
[331345164,1720264240545,-501.27307828,0.00043835,120]
[331345165,1720264240555,-500.0,0.00043835,120]
[331345166,1720264240565,-502.53548147,0.00043835,7]
[331345167,1720264240577,-500.0,0.00043835,120]
[331345168,1720264240588,-500.0,0.00043835,120]
[331345169,1720264240598,-500.0,0.00043835,120]
[331345170,1720264240608,-500.0,0.00043835,120]
[331345171,1720264240618,-225.18876167,0.00043835,120]
[331345172,1720264240628,-500.0,0.00043835,120]
[331345173,1720264240638,-524.1,0.00043835,120]
[331345174,1720264240648,-500.0,0.00043835,120]
[331345175,1720264240658,-500.0,0.00043835,120]
[331345176,1720264240668,-500.0,0.00043835,120]
[331345177,1720264240678,-500.0,0.00043835,120]
[331345178,1720264240688,-501.79484719,0.00043835,120]
[331345179,1720264240698,-500.0,0.00043835,120]
[331345181,1720264240708,-500.0,0.00043835,120]
[331345183,1720264240718,-216.19982751,0.00043835,120]
[331345184,1720264240728,-500.0,0.00043835,120]
[331345187,1720264240739,-500.0,0.00043835,120]
[331345189,1720264240749,-500.0,0.00043835,120]
[331345191,1720264240759,-502.74224461,0.00043835,120]
[331345193,1720264240773,-1383.17,0.00043835,120]
[331345195,1720264240783,-500.0,0.00043835,120]
[331345196,1720264240794,-525.00418764,0.00043835,120]
[331345198,1720264240803,-505.91922995,0.00043835,120]
[331345200,1720264240813,-679.05,0.00043835,120]
[331345202,1720264240822,-500.0,0.00043835,120]
[331345204,1720264240833,-500.50668382,0.00043835,120]
[331345206,1720264240843,-500.0,0.00043835,120]
[331345208,1720264240854,-500.0,0.00043835,120]
[331345209,1720264240864,-507.94,0.00043835,120]
[331345210,1720264240873,-500.0,0.00043835,120]
[331345211,1720264240884,-501.18628466,0.00043835,120]
[331345212,1720264240894,-501.77541142,0.00043835,120]
[331345213,1720264240904,-500.0,0.00043835,120]
[331345214,1720264240914,-500.0,0.00043835,120]
[331345215,1720264240923,-509.62990281,0.00043835,120]
[331345216,1720264240933,-500.0,0.00043835,120]
[331345217,1720264240943,-504.2703496,0.00043835,120]
[331345218,1720264240952,-500.0,0.00043835,120]
[331345219,1720264240962,-170.04902434,0.00043835,120]
[331345220,1720264240972,-500.0,0.00043835,120]
[331345221,1720264240981,-500.0,0.00043835,120]
[331345222,1720264240992,-500.0,0.00043835,120]
[331345223,1720264241001,-502.09704005,0.00043835,120]
[331345224,1720264241011,-500.0,0.00043835,120]
[331345225,1720264241021,-500.0,0.00043835,120]
[331345226,1720264241031,-500.0,0.00043835,120]
[331345227,1720264241042,-500.0,0.00043835,120]
[331345228,1720264241051,-695.31,0.00043835,120]
[331345229,1720264241060,-500.0,0.00043835,120]
[331345230,1720264241070,-520.59,0.00043835,120]
[331345231,1720264241080,-501.99241936,0.00043835,120]
[331345232,1720264241090,-521.39,0.00043835,120]
[331345233,1720264241099,-1067.22,0.00043835,120]
[331345234,1720264241108,-501.36525924,0.00043835,30]
[331345235,1720264241118,-565.43161138,0.00043835,120]
[331345236,1720264241128,-500.0,0.00043835,120]
[331345237,1720264241137,-500.0,0.00043835,120]
[331345238,1720264241147,-500.0,0.00043835,120]
[331345239,1720264241156,-548.59,0.00043835,120]
[331345240,1720264241166,-500.0,0.00043835,2]
[331345241,1720264241175,-502.5901249,0.00043835,120]
[331345242,1720264241185,-500.0,0.00043835,120]
[331345243,1720264241194,-833.34,0.00043835,120]
[331345244,1720264241205,-517.2815086,0.00043835,120]
[331345245,1720264241217,-500.0,0.00043835,120]
[331345246,1720264241227,-1001.56153496,0.00043835,120]
[331345247,1720264241236,-818.11,0.00043835,120]
[331345248,1720264241247,-513.09,0.00043835,120]
[331345249,1720264241257,-501.63305916,0.00043835,120]
[331345250,1720264241266,-500.0,0.00043835,120]
[331345251,1720264241276,-502.62147362,0.00043835,120]
[331345252,1720264241287,-500.0,0.00043835,120]
[331345253,1720264241297,-506.12896394,0.00043835,120]
[331345254,1720264241307,-500.0,0.00043835,120]
[331345255,1720264241316,-500.0,0.00043835,120]
[331345256,1720264241326,-10722.95,0.00043835,120]
[331345257,1720264241335,-500.0,0.00043835,120]
[331345258,1720264241345,-500.0,0.00043835,120]
[331345259,1720264241355,-500.0,0.00043835,120]
[331345260,1720264241364,-535.43020756,0.00043835,120]
[331345261,1720264241375,-502.55642411,0.00043835,120]
[331345262,1720264241384,-500.0,0.00043835,120]
[331345263,1720264241394,-500.0,0.00043835,120]
[331345264,1720264241404,-862.96,0.00043835,120]
[331345265,1720264241413,-500.0,0.00043835,120]
[331345266,1720264241422,-500.0,0.00043835,120]
[331345267,1720264241431,-504.41574764,0.00043835,120]
[331345268,1720264241441,-500.0,0.00043835,120]
[331345269,1720264241450,-503.30751801,0.00043835,120]
[331345270,1720264241459,-500.0,0.00043835,120]
[331345271,1720264241468,-500.0,0.00043835,120]
[331345272,1720264241478,-500.0,0.00043835,2]
[331345273,1720264241487,-582.91,0.00043835,120]
[331345274,1720264241497,-500.0,0.00043835,30]
[331345275,1720264241507,-196.10443754,0.00043835,120]
[331345276,1720264241516,-501.84860553,0.00043835,120]
[331345277,1720264241525,-635.86647357,0.00043835,120]
[331345278,1720264241535,-1141.2,0.00043835,21]
[331345279,1720264241545,-500.0,0.00043835,120]
[331345281,1720264241554,-500.0,0.00043835,120]
[331345282,1720264241564,-500.0,0.00043835,120]
[331345284,1720264241575,-500.0,0.00043835,120]
[331345286,1720264241584,-500.0,0.00043835,120]
[331345288,1720264241594,-500.0,0.00043835,120]
[331345290,1720264241604,-500.0,0.00043835,120]
[331345292,1720264241614,-500.0,0.00043835,20]
[331345293,1720264241623,-501.63999866,0.00043835,120]
[331345295,1720264241633,-500.0,0.00043835,120]
[331345297,1720264241643,-927.62,0.00043835,120]
[331345299,1720264241652,-500.0,0.00043835,120]
[331345301,1720264241661,-316.30495166,0.00043835,120]
[331345303,1720264241671,-500.82472071,0.00043835,120]
[331345304,1720264241681,-873.85,0.00043835,120]
[331345306,1720264241690,-500.0,0.00043835,120]
[331345308,1720264241700,-195.42579939,0.00043835,120]
[331345310,1720264241709,-758.03,0.00043835,120]
[331345311,1720264241719,-534.10763891,0.00043835,120]
[331345313,1720264241728,-504.49121844,0.00043835,120]
[331345314,1720264241739,-500.66860635,0.00043835,120]
[331345315,1720264241748,-636.7793891,0.00043835,120]
[331345316,1720264241758,-500.0,0.00043835,120]
[331345317,1720264241768,-527.77014961,0.00043835,120]
[331345318,1720264241778,-500.0,0.00043835,120]
[331345319,1720264241788,-503.45886022,0.00043835,25]
[331345320,1720264241797,-500.0,0.00043835,120]
[331345321,1720264241807,-500.0,0.00043835,120]
[331345322,1720264241816,-500.0,0.00043835,120]
[331345323,1720264241827,-1353.73,0.00043835,120]
[331345324,1720264241836,-645.67,0.00043835,120]
[331345325,1720264241846,-500.0,0.00043835,120]
[331345326,1720264241856,-500.0,0.00043835,120]
[331345327,1720264241865,-585.51,0.00043835,120]
[331345328,1720264241874,-500.38449014,0.00043835,120]
[331345329,1720264241884,-500.0,0.00043835,120]
[331345330,1720264241893,-706.31,0.00043835,120]
[331345331,1720264241902,-500.0,0.00043835,120]
[331345332,1720264241912,-500.0,0.00043835,120]
[331345333,1720264241921,-500.0,0.00043835,120]
[331345334,1720264241931,-500.0,0.00043835,120]
[331345335,1720264241941,-500.0,0.00043835,120]
[331345336,1720264241950,-508.48225823,0.00043835,120]
[331345337,1720264241959,-502.50051292,0.00043835,120]
[331345338,1720264241969,-507.51531318,0.00043835,120]
[331345339,1720264241979,-500.0,0.00043835,120]
[331345340,1720264241989,-548.73,0.00043835,120]
[331345341,1720264241998,-500.0,0.00043835,120]
[331345342,1720264242008,-500.0,0.00043835,120]
[331345343,1720264242017,-500.0,0.00043835,120]
[331345344,1720264242027,-505.84992118,0.00043835,120]
[331345345,1720264242037,-570.59,0.00043835,120]
[331345346,1720264242046,-500.0,0.00043835,120]
[331345347,1720264242056,-500.0,0.00043835,120]
[331345348,1720264242065,-510.67176337,0.00043835,120]
[331345349,1720264242075,-500.0,0.00043835,120]
[331345350,1720264242084,-500.0,0.00043835,120]
[331345351,1720264242094,-500.0,0.00043835,120]
[331345352,1720264242104,-500.0,0.00043835,120]
[331345353,1720264242113,-500.0,0.00043835,120]
[331345354,1720264242122,-500.0,0.00043835,120]
[331345355,1720264242133,-500.0,0.00043835,120]
[331345356,1720264242143,-642.45,0.00043835,120]
[331345357,1720264242152,-500.0,0.00043835,120]
[331345358,1720264242163,-500.0,0.00043835,120]
[331345359,1720264242173,-500.0,0.00043835,120]
[331345360,1720264242183,-500.0,0.00043835,120]
[331345361,1720264242192,-500.0,0.00043835,120]
[331345362,1720264242202,-500.0,0.00043835,120]
[331345363,1720264242218,-500.0,0.00043835,120]
[331345364,1720264242227,-500.0,0.00043835,120]
[331345365,1720264242237,-500.0,0.00043835,120]
[331345366,1720264242247,-500.0,0.00043835,120]
[331345367,1720264242256,-500.0,0.00043835,120]
[331345368,1720264242266,-500.0,0.00043835,120]
[331345369,1720264242275,-500.0,0.00043835,120]
[331345370,1720264242287,-500.0,0.00043835,120]
[331345371,1720264242296,-500.0,0.00043835,120]
[331345372,1720264242306,-503.48956537,0.00043835,120]
[331345373,1720264242317,-511.03104743,0.00043835,120]
[331345374,1720264242327,-500.0,0.00043835,120]
[331345375,1720264242338,-500.0,0.00043835,120]
[331345376,1720264242348,-581.56878288,0.00043835,120]
[331345377,1720264242359,-500.0,0.00043835,120]
[331345378,1720264242370,-500.0,0.00043835,120]
[331345379,1720264242380,-500.0,0.00043835,120]
[331345380,1720264242390,-1902.58,0.00043835,120]
[331345381,1720264242400,-200.0,0.00043835,7]
[331345382,1720264242411,-500.0,0.00043835,120]
[331345383,1720264242420,-502.23795999,0.00043835,120]
[331345385,1720264242431,-1000.0,0.00043835,90]
[331345386,1720264242441,-500.0,0.00043835,120]
[331345387,1720264242452,-500.0,0.00043835,120]
[331345388,1720264242463,-503.71749401,0.00043835,120]
[331345389,1720264242473,-500.0,0.00043835,120]
[331345390,1720264242636,-500.0,0.00043835,120]
[331345391,1720264242656,-500.0,0.00043835,120]
[331345392,1720264242666,-500.0,0.00043835,120]
[331345393,1720264242676,-688.09,0.00043835,120]
[331345394,1720264242685,-500.0,0.00043835,120]
[331345395,1720264242695,-4428.77,0.00043835,120]
[331345396,1720264242704,-500.0,0.00043835,120]
[331345397,1720264242715,-1038.15,0.00043835,120]
[331345398,1720264242724,-500.0,0.00043835,120]
[331345399,1720264242734,-500.0,0.00043835,120]
[331345400,1720264242744,-500.0,0.00043835,120]
[331345401,1720264242753,-1165.6,0.00043835,120]
[331345402,1720264242764,-510.37,0.00043835,120]
[331345403,1720264242776,-500.0,0.00043835,120]
[331345404,1720264242786,-500.0,0.00043835,120]
[331345405,1720264242796,-500.0,0.00043835,120]
[331345406,1720264242806,-502.20466651,0.00043835,120]
[331345407,1720264242816,-500.0,0.00043835,120]
[331345408,1720264242827,-167.3934691,0.00043835,120]
[331345409,1720264242837,-407.05237673,0.00043835,120]
[331345410,1720264242847,-500.0,0.00043835,120]
[331345411,1720264242856,-500.0,0.00043835,120]
[331345412,1720264242866,-500.0,0.00043835,120]
[331345413,1720264242875,-500.0,0.00043835,120]
[331345414,1720264242885,-500.0,0.00043835,120]
[331345415,1720264242896,-500.0,0.00043835,120]
[331345416,1720264242906,-502.10208647,0.00043835,120]
[331345417,1720264242916,-500.0,0.00043835,120]
[331345418,1720264242926,-500.0,0.00043835,120]
[331345419,1720264242935,-500.0,0.00043835,120]
[331345420,1720264242945,-500.82146768,0.00043835,120]
[331345421,1720264242954,-501.49158823,0.00043835,120]
[331345422,1720264242963,-500.0,0.00043835,120]
[331345423,1720264242972,-502.59942762,0.00043835,120]
[331345424,1720264242982,-505.14523117,0.00043835,120]
[331345425,1720264242992,-505.05968005,0.00043835,120]
[331345426,1720264243001,-501.45298817,0.00043835,120]
[331345427,1720264243011,-1016.68,0.00043835,120]
[331345428,1720264243021,-151.0,0.00043835,14]
[331345429,1720264243031,-503.70306091,0.00043835,120]
[331345430,1720264243041,-500.0,0.00043835,120]
[331345431,1720264243050,-500.0,0.00043835,120]
[331345432,1720264243060,-500.0,0.00043835,120]
[331345433,1720264243069,-500.0,0.00043835,120]
[331345434,1720264243078,-500.0,0.00043835,120]
[331345435,1720264243088,-505.12422803,0.00043835,120]
[331345436,1720264243097,-500.0,0.00043835,120]
[331345437,1720264243107,-608.81,0.00043835,120]
[331345438,1720264243116,-503.16108339,0.00043835,120]
[331345439,1720264243125,-500.0,0.00043835,120]
[331345440,1720264243135,-7757.67,0.00043835,120]
[331345441,1720264243145,-500.0,0.00043835,120]
[331345442,1720264243155,-179.42821908,0.00043835,120]
[331345443,1720264243165,-517.64,0.00043835,120]
[331345444,1720264243175,-501.61407002,0.00043835,120]
[331345445,1720264243184,-500.0,0.00043835,120]
[331345446,1720264243194,-500.0,0.00043835,120]
[331345447,1720264243203,-500.60007697,0.00043835,120]
[331345448,1720264243216,-500.0,0.00043835,120]
[331345449,1720264243227,-500.0,0.00043835,120]
[331345450,1720264243236,-500.0,0.00043835,120]
[331345451,1720264243246,-500.0,0.00043835,120]
[331345452,1720264243257,-500.0,0.00043835,120]
[331345453,1720264243267,-500.0,0.00043835,120]
[331345454,1720264243276,-500.0,0.00043835,120]
[331345455,1720264243287,-500.0,0.00043835,120]
[331345456,1720264243298,-500.0,0.00043835,120]
[331345457,1720264243308,-500.0,0.00043835,120]
[331345458,1720264243318,-743.6,0.00043835,120]
[331345459,1720264243327,-743.6,0.00043835,120]
[331345460,1720264243337,-743.6,0.00043835,120]
[331345461,1720264243347,-743.6,0.00043835,120]
[331345462,1720264243357,-743.6,0.00043835,120]
[331345463,1720264243366,-527.07,0.00043835,120]
[331345464,1720264243376,-500.0,0.00043835,120]
[331345465,1720264243385,-500.0,0.00043835,120]
[331345466,1720264243395,-500.0,0.00043835,120]
[331345467,1720264243404,-500.0,0.00043835,120]
[331345468,1720264243414,-500.0,0.00043835,120]
[331345469,1720264243423,-500.0,0.00043835,120]
[331345470,1720264243433,-500.0,0.00043835,120]
[331345471,1720264243442,-500.0,0.00043835,120]
[331345472,1720264243452,-500.0,0.00043835,120]
[331345473,1720264243461,-503.07161379,0.00043835,120]
[331345474,1720264243471,-1375.9,0.00043835,120]
[331345475,1720264243481,-500.0,0.00043835,120]
[331345477,1720264243491,-755.67,0.00043835,120]
[331345478,1720264243502,-509.87386553,0.00043835,120]
[331345479,1720264243512,-151.0,0.00043835,14]
[331345480,1720264243521,-500.0,0.00043835,120]
[331345481,1720264243531,-500.0,0.00043835,120]
[331345482,1720264243541,-500.0,0.00043835,120]
[331345483,1720264243551,-500.0,0.00043835,120]
[331345484,1720264243561,-500.0,0.00043835,120]
[331345485,1720264243572,-500.0,0.00043835,120]
[331345486,1720264243581,-500.0,0.00043835,120]
[331345487,1720264243591,-500.0,0.00043835,60]
[331345488,1720264243601,-500.0,0.00043835,120]
[331345489,1720264243612,-500.0,0.00043835,120]
[331345490,1720264243622,-500.5055612,0.00043835,120]
[331345491,1720264243631,-504.49059615,0.00043835,120]
[331345492,1720264243641,-500.0,0.00043835,120]
[331345493,1720264243652,-500.0,0.00043835,120]
[331345494,1720264243662,-830.95,0.00043835,120]
[331345495,1720264243671,-500.0,0.00043835,120]
[331345496,1720264243681,-505.75699506,0.00043835,120]
[331345497,1720264243691,-500.0,0.00043835,120]
[331345498,1720264243701,-500.0,0.00043835,120]
[331345499,1720264243711,-500.0,0.00043835,120]
[331345500,1720264243721,-1164.82,0.00043835,120]
[331345501,1720264243731,-500.0,0.00043835,120]
[331345502,1720264243741,-500.0,0.00043835,120]
[331345503,1720264243750,-500.0,0.00043835,120]
[331345504,1720264243760,-501.87716586,0.00043835,120]
[331345505,1720264243771,-1313.02,0.00043835,120]
[331345506,1720264243781,-500.0,0.00043835,120]
[331345507,1720264243793,-970.3,0.00043835,120]
[331345508,1720264243802,-506.31691274,0.00043835,120]
[331345509,1720264243812,-575.40044608,0.00043835,120]
[331345510,1720264243823,-500.0,0.00043835,120]
[331345511,1720264243833,-2034.94,0.00043835,120]
[331345512,1720264243842,-1731.28,0.00043835,120]
[331345513,1720264243852,-500.0,0.00043835,120]
[331345514,1720264243862,-151.0,0.00043835,14]
[331345515,1720264243872,-500.0,0.00043835,120]
[331345516,1720264243882,-151.0,0.00043835,14]
[331345517,1720264243893,-500.0,0.00043835,120]
[331345518,1720264243903,-500.0,0.00043835,120]
[331345519,1720264243913,-151.0,0.00043835,14]
[331345520,1720264243922,-1574.65,0.00043835,120]
[331345521,1720264243932,-500.0,0.00043835,120]
[331345522,1720264243941,-507.09659938,0.00043835,120]
[331345523,1720264243951,-500.97986568,0.00043835,120]
[331345524,1720264243960,-28384.64,0.00043835,120]
[331345525,1720264243970,-500.0,0.00043835,120]
[331345526,1720264243980,-226.07432024,0.00043835,120]
[331345527,1720264243990,-500.0,0.00043835,120]
[331345528,1720264243999,-500.0,0.00043835,120]
[331345529,1720264244009,-724.54,0.00043835,120]
[331345530,1720264244018,-2959.78,0.00043835,21]
[331345531,1720264244028,-200.10007512,0.00043835,120]
[331345532,1720264244038,-500.0,0.00043835,120]
[331345533,1720264244047,-500.0,0.00043835,120]
[331345534,1720264244058,-500.0,0.00043835,120]
[331345535,1720264244067,-500.0,0.00043835,120]
[331345536,1720264244078,-516.29788946,0.00043835,120]
[331345537,1720264244087,-4984.32,0.00043835,120]
[331345538,1720264244098,-637.23736675,0.00043835,120]
[331345539,1720264244109,-500.0,0.00043835,120]
[331345540,1720264244120,-500.38796463,0.00043835,120]
[331345541,1720264244130,-500.0,0.00043835,120]
[331345542,1720264244141,-501.70142996,0.00043835,120]
[331345543,1720264244150,-501.45129689,0.00043835,120]
[331345544,1720264244160,-500.0,0.00043835,120]
[331345547,1720264244170,-500.0,0.00043835,120]
[331345549,1720264244179,-500.0,0.00043835,120]
[331345551,1720264244188,-500.0,0.00043835,120]
[331345553,1720264244198,-1760.48,0.00043835,120]
[331345555,1720264244211,-501.39956498,0.00043835,120]
[331345557,1720264244222,-500.0,0.00043835,120]
[331345559,1720264244231,-1220.61,0.00043835,120]
[331345561,1720264244240,-500.0,0.00043835,120]
[331345563,1720264244251,-529.04502706,0.00043835,120]
[331345564,1720264244260,-500.0,0.00043835,120]
[331345566,1720264244270,-500.0,0.00043835,120]
[331345567,1720264244280,-563.96,0.00043835,120]
[331345568,1720264244289,-500.0,0.00043835,120]
[331345569,1720264244299,-504.21618301,0.00043835,120]
[331345570,1720264244308,-500.0,0.00043835,120]
[331345571,1720264244318,-151.0,0.00043835,14]
[331345572,1720264244329,-2529.2,0.00043835,60]
[331345573,1720264244339,-4191.44,0.00043835,120]
[331345574,1720264244348,-500.0,0.00043835,120]
[331345575,1720264244358,-500.0,0.00043835,120]